lending/lending_fUSD_20250131
["ID","MTS","AMOUNT","RATE_DAILY","PERIOD"]
[351068502,1738323085870,-500.0,0.00017123,2]
[351068503,1738323085884,-500.0,0.00017123,2]
[351068504,1738323085899,-500.0,0.00017123,2]
[351068505,1738323085918,-500.0,0.00017123,2]
[351068506,1738323085933,-500.0,0.00017123,2]
[351068507,1738323085948,-594.96,0.00017123,2]
[351068508,1738323085962,-500.0,0.00017123,2]
[351068509,1738323085978,-500.0,0.00017123,2]
[351068510,1738323085994,-500.0,0.00017123,2]
[351068511,1738323086012,-500.0,0.00017123,2]
[351068512,1738323086027,-500.0,0.00017123,2]
[351068513,1738323086042,-500.0,0.00017123,2]
[351068514,1738323086058,-500.0,0.00017123,2]
[351068515,1738323086072,-583.47,0.00017123,2]
[351068516,1738323086092,-500.0,0.00017123,2]
[351068517,1738323086107,-692.31,0.00017123,2]
[351068518,1738323086121,-395.06364145,0.00017123,2]
[351068519,1738323086136,-500.0,0.00017123,2]
[351068520,1738323086155,-500.0,0.00017123,2]
[351068521,1738323086177,-500.0,0.00017123,2]
[351068522,1738323086194,-642.58,0.00017123,2]
[351068523,1738323086210,-557.11296448,0.00017123,2]
[351068524,1738323086226,-500.0,0.00017123,2]
[351068525,1738323086242,-500.0,0.00017123,2]
[351068526,1738323086257,-500.0,0.00017123,2]
[351068527,1738323086273,-1244.98,0.00017123,2]
[351068528,1738323086287,-500.0,0.00017123,2]
[351068529,1738323086302,-1199.61,0.00017123,2]
[351068530,1738323086317,-506.66,0.00017123,2]
[351068531,1738323086332,-185.55045164,0.00017123,2]
[351068532,1738323086346,-500.0,0.00017123,2]
[351068533,1738323086360,-500.0,0.00017123,2]
[351068534,1738323086375,-500.0,0.00017123,2]
[351068535,1738323086390,-500.0,0.00017123,2]
[351068536,1738323086404,-500.0,0.00017123,2]
[351068537,1738323086420,-595.49,0.00017123,2]
[351068538,1738323086434,-500.0,0.00017123,2]
[351068539,1738323086450,-500.0,0.00017123,2]
[351068540,1738323086465,-500.0,0.00017123,2]
[351068541,1738323086480,-1274.38,0.00017123,2]
[351068542,1738323086495,-500.0,0.00017123,2]
[351068543,1738323086510,-755.45,0.00017123,2]
[351068544,1738323086525,-229.64380752,0.00017123,2]
[351068545,1738323086540,-500.0,0.00017123,2]
[351068546,1738323086555,-500.0,0.00017123,2]
[351068547,1738323086755,-500.0,0.00017123,2]
[351068548,1738323086766,-500.0,0.00017123,2]
[351068549,1738323086776,-500.0,0.00017123,2]
[351068550,1738323086786,-532.66,0.00017123,2]
[351068551,1738323086796,-500.0,0.00017123,2]
[351068552,1738323086806,-912.55,0.00017123,2]
[351068553,1738323086815,-500.0,0.00017123,2]
[351068554,1738323086824,-680.03,0.00017123,2]
[351068555,1738323086833,-500.0,0.00017123,2]
[351068556,1738323086843,-500.0,0.00017123,2]
[351068557,1738323086852,-500.0,0.00017123,2]
[351068558,1738323086861,-500.0,0.00017123,2]
[351068559,1738323086870,-500.0,0.00017123,2]
[351068560,1738323086880,-500.0,0.00017123,2]
[351068561,1738323086889,-529.20955762,0.00017123,2]
[351068562,1738323086899,-500.0,0.00017123,2]
[351068563,1738323086908,-641.79,0.00017123,2]
[351068564,1738323086920,-500.0,0.00017123,2]
[351068565,1738323086929,-500.0,0.00017123,2]
[351068566,1738323086939,-999.77,0.00017123,2]
[351068567,1738323086948,-500.0,0.00017123,2]
[351068568,1738323086958,-712.15,0.00017123,2]
[351068569,1738323086969,-500.0,0.00017123,2]
[351068570,1738323086979,-500.0,0.00017123,2]
[351068571,1738323086989,-812.58,0.00017123,2]
[351068572,1738323087003,-500.0,0.00017123,2]
[351068573,1738323087013,-500.0,0.00017123,2]
[351068574,1738323087023,-500.0,0.00017123,2]
[351068575,1738323087033,-923.31,0.00017123,2]
[351068576,1738323087044,-685.64,0.00017123,2]
[351068577,1738323087053,-520.09212046,0.00017123,2]
[351068578,1738323087062,-621.16,0.00017123,2]
[351068579,1738323087071,-500.0,0.00017123,2]
[351068580,1738323087081,-2002.83,0.00017123,2]
[351068581,1738323087090,-1251.02,0.00017123,2]
[351068582,1738323087100,-1563.52,0.00017123,2]
[351068583,1738323087109,-500.0,0.00017123,2]
[351068584,1738323087118,-500.0,0.00017123,2]
[351068585,1738323087127,-500.0,0.00017123,2]
[351068586,1738323087136,-500.0,0.00017123,2]
[351068587,1738323087146,-500.0,0.00017123,2]
[351068588,1738323087155,-500.0,0.00017123,2]
[351068589,1738323087167,-500.0,0.00017123,2]
[351068590,1738323087177,-542.45,0.00017123,2]
[351068591,1738323087186,-2183.31,0.00017123,2]
[351068592,1738323087195,-631.52,0.00017123,2]
[351068593,1738323087204,-541.14,0.00017123,2]
[351068594,1738323087213,-1559.63,0.00017123,2]
[351068595,1738323087223,-504.56748471,0.00017123,2]
[351068596,1738323087232,-808.68,0.00017123,2]
[351068597,1738323087240,-493.88519603,0.00017123,2]
[351068598,1738323087249,-500.0,0.00017123,2]
[351068599,1738323087258,-1089.13,0.00017123,2]
[351068600,1738323087267,-500.0,0.00017123,2]
[351068601,1738323087276,-500.0,0.00017123,2]
[351068602,1738323087285,-524.66,0.00017123,2]
[351068603,1738323087294,-1658.21,0.00017123,2]
[351068604,1738323087303,-500.0,0.00017123,2]
[351068605,1738323087312,-1446.98,0.00017123,2]
[351068606,1738323087322,-500.0,0.00017123,2]
[351068607,1738323087331,-825.0,0.00017123,2]
[351068608,1738323087340,-1082.85,0.00017123,2]
[351068609,1738323087350,-1218.3,0.00017123,2]
[351068610,1738323087359,-1319.18,0.00017123,2]
[351068611,1738323087374,-1340.29,0.00017123,2]
[351068612,1738323087383,-500.0,0.00017123,2]
[351068613,1738323087392,-500.0,0.00017123,2]
[351068614,1738323087401,-500.0,0.00017123,2]
[351068615,1738323087415,-824.43,0.00017123,2]
[351068616,1738323087424,-500.0,0.00017123,2]
[351068617,1738323087433,-1107.6,0.00017123,2]
[351068618,1738323087443,-906.09,0.00017123,2]
[351068619,1738323087453,-500.0,0.00017123,2]
[351068620,1738323087462,-500.0,0.00017123,2]
[351068621,1738323087471,-500.0,0.00017123,2]
[351068622,1738323087480,-1720.71,0.00017123,2]
[351068623,1738323087490,-685.52,0.00017123,2]
[351068624,1738323087499,-500.0,0.00017123,2]
[351068625,1738323087507,-500.0,0.00017123,2]
[351068626,1738323087517,-500.0,0.00017123,2]
[351068627,1738323087526,-500.0,0.00017123,2]
[351068628,1738323087536,-500.0,0.00017123,2]
[351068629,1738323087545,-675.93,0.00017123,2]
[351068630,1738323087554,-274.4544758,0.00017123,2]
[351068631,1738323087563,-517.89,0.00017123,2]
[351068632,1738323087572,-1524.37,0.00017123,2]
[351068633,1738323087582,-952.99,0.00017123,2]
[351068634,1738323087591,-500.0,0.00017123,2]
[351068635,1738323087601,-500.0,0.00017123,2]
[351068636,1738323087610,-500.0,0.00017123,2]
[351068637,1738323087619,-1065.27,0.00017123,2]
[351068638,1738323087629,-500.0,0.00017123,2]
[351068639,1738323087638,-540.49,0.00017123,2]
[351068640,1738323087647,-1066.82,0.00017123,2]
[351068641,1738323087657,-500.0,0.00017123,2]
[351068642,1738323087668,-660.13,0.00017123,2]
[351068643,1738323087677,-2110.08,0.00017123,2]
[351068644,1738323087686,-500.0,0.00017123,2]
[351068645,1738323087696,-500.0,0.00017123,2]
[351068646,1738323087705,-500.0,0.00017123,2]
[351068647,1738323087714,-872.44,0.00017123,2]
[351068648,1738323087724,-500.0,0.00017123,2]
[351068649,1738323087734,-500.0,0.00017123,2]
[351068650,1738323087743,-500.0,0.00017123,2]
[351068651,1738323087752,-1188.82,0.00017123,2]
[351068652,1738323087761,-500.0,0.00017123,2]
[351068653,1738323087771,-2212.75,0.00017123,2]
[351068654,1738323087780,-500.0,0.00017123,2]
[351068655,1738323087789,-2571.72,0.00017123,2]
[351068656,1738323087799,-500.0,0.00017123,2]
[351068657,1738323087808,-500.0,0.00017123,2]
[351068658,1738323087817,-500.0,0.00017123,2]
[351068659,1738323087827,-1396.67,0.00017123,2]
[351068660,1738323087836,-2264.19,0.00017123,2]
[351068661,1738323087846,-615.04,0.00017123,2]
[351068662,1738323087855,-500.0,0.00017123,2]
[351068663,1738323087864,-500.0,0.00017123,2]
[351068664,1738323087873,-1486.69,0.00017123,2]
[351068665,1738323087882,-500.0,0.00017123,2]
[351068666,1738323087892,-1434.53,0.00017123,2]
[351068667,1738323087901,-523.70195401,0.00017123,2]
[351068668,1738323087912,-500.0,0.00017123,2]
[351068669,1738323087922,-4002.22,0.00017123,2]
[351068670,1738323087931,-500.0,0.00017123,2]
[351068671,1738323087940,-842.74,0.00017123,2]
[351068672,1738323087950,-500.0,0.00017123,2]
[351068673,1738323087960,-1857.52,0.00017123,2]
[351068674,1738323087969,-500.0,0.00017123,2]
[351068675,1738323087978,-1874.3,0.00017123,2]
[351068676,1738323087988,-508.70346319,0.00017123,2]
[351068677,1738323087999,-500.0,0.00017123,2]
[351068678,1738323088009,-500.0,0.00017123,2]
[351068679,1738323088019,-2209.64,0.00017123,2]
[351068680,1738323088028,-1744.69,0.00017123,2]
[351068681,1738323088038,-500.0,0.00017123,2]
[351068682,1738323088048,-500.0,0.00017123,2]
[351068683,1738323088056,-500.0,0.00017123,2]
[351068684,1738323088066,-2054.43,0.00017123,2]
[351068685,1738323088078,-1162.31,0.00017123,2]
[351068686,1738323088087,-215.45688841,0.00017123,2]
[351068687,1738323088096,-113.59240151,0.00017123,2]
[351068688,1738323089195,-504.35660424,0.00016575,2]
[351068689,1738323089205,-182.59900366,0.00016986,2]
[351068690,1738323089371,-500.0,0.00016438,2]
[351068691,1738323089380,-1131.99099634,0.00016986,2]
[351068692,1738323089390,-776.53,0.00016986,2]
[351068693,1738323089399,-386.40759849,0.00017123,2]
[351068694,1738323089409,-1690.08,0.00017123,2]
[351068695,1738323089421,-2453.26,0.00017123,2]
[351068696,1738323089431,-2088.93,0.00017123,2]
[351068697,1738323089625,-500.0,0.00017123,2]
[351068698,1738323089635,-500.0,0.00017123,2]
[351068699,1738323089645,-500.0,0.00017123,2]
[351068700,1738323089654,-1384.15,0.00017123,2]
[351068701,1738323089667,-2748.88,0.00017123,2]
[351068702,1738323089676,-423.90344822,0.00017123,2]
[351068703,1738323089685,-250.14865393,0.00017123,2]
[351068704,1738323089694,-1157.73,0.00017123,2]
[351068705,1738323089703,-500.0,0.00017123,2]
[351068706,1738323089712,-500.0,0.00017123,2]
[351068707,1738323089722,-500.0,0.00017123,2]
[351068708,1738323089731,-500.0,0.00017123,2]
[351068709,1738323089740,-936.11,0.00017123,2]
[351068710,1738323089749,-500.0,0.00017123,2]
[351068711,1738323089758,-783.32,0.00017123,2]
[351068712,1738323089767,-500.0,0.00017123,2]
[351068713,1738323089777,-823.42,0.00017123,2]
[351068714,1738323089788,-500.0,0.00017123,2]
[351068715,1738323089808,-500.0,0.00017123,2]
[351068716,1738323089817,-522.93,0.00017123,2]
[351068717,1738323089826,-500.0,0.00017123,2]
[351068718,1738323089836,-500.0,0.00017123,2]
[351068719,1738323089845,-2972.09,0.00017123,2]
[351068720,1738323089855,-500.0,0.00017123,2]
[351068721,1738323089865,-1094.11,0.00017123,2]
[351068722,1738323089875,-500.0,0.00017123,2]
[351068723,1738323089884,-1202.8,0.00017123,2]
[351068724,1738323089894,-218.69735819,0.00017123,2]
[351068725,1738323089906,-1528.66264181,0.00017123,2]
[351068726,1738323089918,-500.0,0.00017123,2]
[351068727,1738323089927,-1325.09,0.00017123,2]
[351068728,1738323089937,-500.0,0.00017123,2]
[351068729,1738323089946,-500.0,0.00017123,2]
[351068730,1738323089955,-1401.57,0.00017123,2]
[351068731,1738323089965,-705.87,0.00017123,2]
[351068732,1738323089974,-959.86,0.00017123,2]
[351068733,1738323089983,-598.63,0.00017123,2]
[351068734,1738323089994,-500.0,0.00017123,2]
[351068735,1738323090006,-500.0,0.00017123,2]
[351068736,1738323090016,-500.0,0.00017123,2]
[351068737,1738323090025,-500.0,0.00017123,2]
[351068738,1738323090035,-1400.54,0.00017123,2]
[351068739,1738323090044,-1501.98,0.00017123,2]
[351068740,1738323090053,-1280.35,0.00017123,2]
[351068741,1738323090063,-1680.19,0.00017123,2]
[351068742,1738323090072,-536.6,0.00017123,2]
[351068743,1738323090081,-548.40476709,0.00017123,2]
[351068744,1738323090090,-526.79,0.00017123,2]
[351068745,1738323090100,-1004.99,0.00017123,2]
[351068746,1738323090109,-1188.35,0.00017123,2]
[351068747,1738323090118,-529.21,0.00017123,2]
[351068748,1738323090127,-1116.16,0.00017123,2]
[351068749,1738323090137,-500.0,0.00017123,2]
[351068750,1738323090146,-76.3434224,0.00017123,2]
[351068751,1738323090401,-500.0,0.00016575,2]
[351068752,1738323090411,-510.06782354,0.00016712,2]
[351068753,1738323090424,-1323.1365776,0.00017123,2]
[351068754,1738323090433,-1496.14,0.00017123,2]
[351068755,1738323090442,-500.0,0.00017123,2]
[351068756,1738323090452,-900.15559886,0.00017123,2]
[351068757,1738323090543,-180.59440114,0.00017123,2]
[351068758,1738323090553,-319.7058089,0.00017123,2]
[351068759,1738323090569,-601.2841911,0.00017123,2]
[351068760,1738323090578,-500.0,0.00017123,2]
[351068761,1738323090589,-500.0,0.00017123,2]
[351068762,1738323090598,-500.0,0.00017123,2]
[351068763,1738323090607,-524.05,0.00017123,2]
[351068764,1738323090617,-917.77,0.00017123,2]
[351068765,1738323090627,-1066.06,0.00017123,2]
[351068766,1738323090637,-500.0,0.00017123,2]
[351068767,1738323090647,-1221.67,0.00017123,2]
[351068768,1738323090657,-715.06,0.00017123,2]
[351068769,1738323090669,-599.94,0.00017123,2]
[351068770,1738323090678,-2242.55,0.00017123,2]
[351068771,1738323090686,-66.51580891,0.00017123,2]
[351068772,1738323090698,-476.62419109,0.00017123,2]
[351068773,1738323090708,-1491.37,0.00017123,2]
[351068774,1738323090717,-500.0,0.00017123,2]
[351068775,1738323090727,-967.53,0.00017123,2]
[351068776,1738323090736,-2304.6,0.00017123,2]
[351068777,1738323090747,-569.90460695,0.00017123,2]
[351068778,1738323090758,-641.52532743,0.00017123,2]
[351068779,1738323090769,-674.76,0.00017123,2]
[351068780,1738323090778,-691.34,0.00017123,2]
[351068781,1738323090789,-533.79,0.00017123,2]
[351068782,1738323090798,-500.0,0.00017123,2]
[351068783,1738323090808,-655.5,0.00017123,2]
[351068784,1738323090818,-500.0,0.00017123,2]
[351068785,1738323090827,-927.88,0.00017123,2]
[351068786,1738323090836,-500.0,0.00017123,2]
[351068787,1738323090845,-500.0,0.00017123,2]
[351068788,1738323090854,-500.0,0.00017123,2]
[351068789,1738323090863,-1225.27,0.00017123,2]
[351068790,1738323090873,-577.57241758,0.00017123,2]
[351068791,1738323090885,-655.24758242,0.00017123,2]
[351068792,1738323090895,-500.0,0.00017123,2]
[351068793,1738323090904,-500.0,0.00017123,2]
[351068794,1738323090913,-660.11,0.00017123,2]
[351068795,1738323090926,-500.0,0.00017123,2]
[351068796,1738323090935,-2677.1,0.00017123,2]
[351068797,1738323090944,-2095.21,0.00017123,2]
[351068798,1738323090954,-500.0,0.00017123,2]
[351068799,1738323090964,-1904.55,0.00017123,2]
[351068800,1738323090973,-500.0,0.00017123,2]
[351068801,1738323090983,-537.27013789,0.00017123,2]
[351068802,1738323090992,-1345.25,0.00017123,2]
[351068803,1738323091002,-799.53,0.00017123,2]
[351068804,1738323091012,-475.51263191,0.00017123,2]
[351068805,1738323091022,-1324.34,0.00017123,2]
[351068806,1738323091032,-500.0,0.00017123,2]
[351068807,1738323091042,-500.0,0.00017123,2]
[351068808,1738323091052,-500.0,0.00017123,2]
[351068809,1738323091062,-500.0,0.00017123,2]
[351068810,1738323091072,-1071.62,0.00017123,2]
[351068811,1738323091083,-500.0,0.00017123,2]
[351068812,1738323091092,-506.73037324,0.00017123,2]
[351068813,1738323091101,-500.0,0.00017123,2]
[351068814,1738323091111,-500.0,0.00017123,2]
[351068815,1738323091121,-799.05,0.00017123,2]
[351068816,1738323091131,-655.67,0.00017123,2]
[351068817,1738323091140,-500.0,0.00017123,2]
[351068818,1738323091150,-500.0,0.00017123,2]
[351068819,1738323091159,-924.74,0.00017123,2]
[351068820,1738323091172,-1415.06,0.00017123,2]
[351068821,1738323091182,-513.48,0.00017123,2]
[351068822,1738323091192,-639.23,0.00017123,2]
[351068823,1738323091202,-1437.94,0.00017123,2]
[351068824,1738323091211,-500.0,0.00017123,2]
[351068825,1738323091222,-718.04,0.00017123,2]
[351068826,1738323091232,-500.0,0.00017123,2]
[351068827,1738323091242,-500.0,0.00017123,2]
[351068828,1738323091251,-1179.86,0.00017123,2]
[351068829,1738323091261,-834.34,0.00017123,2]
[351068830,1738323091271,-1156.02,0.00017123,2]
[351068831,1738323091281,-500.0,0.00017123,2]
[351068832,1738323091290,-678.8,0.00017123,2]
[351068833,1738323091300,-934.67,0.00017123,2]
[351068834,1738323091310,-773.7,0.00017123,2]
[351068835,1738323091320,-500.0,0.00017123,2]
[351068836,1738323091329,-500.0,0.00017123,2]
[351068837,1738323091339,-762.18,0.00017123,2]
[351068838,1738323091349,-2800.41,0.00017123,2]
[351068839,1738323091358,-500.0,0.00017123,2]
[351068840,1738323091368,-842.43,0.00017123,2]
[351068841,1738323091377,-2149.68,0.00017123,2]
[351068842,1738323091386,-734.91,0.00017123,2]
[351068843,1738323091396,-2943.67,0.00017123,2]
[351068844,1738323091405,-500.0,0.00017123,2]
[351068845,1738323091414,-500.0,0.00017123,2]
[351068846,1738323091425,-851.72,0.00017123,2]
[351068847,1738323091434,-1288.98,0.00017123,2]
[351068848,1738323091442,-500.0,0.00017123,2]
[351068849,1738323091452,-500.0,0.00017123,2]
[351068850,1738323091460,-1500.88,0.00017123,2]
[351068851,1738323091470,-500.0,0.00017123,2]
[351068852,1738323091479,-500.0,0.00017123,2]
[351068853,1738323091488,-948.46,0.00017123,2]
[351068854,1738323091497,-500.0,0.00017123,2]
[351068855,1738323091507,-1329.35,0.00017123,2]
[351068856,1738323091517,-3834.64,0.00017123,2]
[351068857,1738323091526,-494.3064438,0.00017123,2]
[351068858,1738323091536,-500.0,0.00017123,2]
[351068859,1738323091545,-924.07,0.00017123,2]
[351068860,1738323091555,-500.0,0.00017123,2]
[351068861,1738323091565,-1040.64,0.00017123,2]
[351068862,1738323091574,-500.0,0.00017123,2]
[351068863,1738323091583,-500.0,0.00017123,2]
[351068864,1738323091593,-500.0,0.00017123,2]
[351068865,1738323091602,-500.0,0.00017123,2]
[351068866,1738323091611,-1264.17,0.00017123,2]
[351068867,1738323091620,-500.0,0.00017123,2]
[351068868,1738323091629,-1799.72,0.00017123,2]
[351068869,1738323091638,-500.0,0.00017123,2]
[351068870,1738323091647,-6544.06,0.00017123,2]
[351068871,1738323091656,-1156.79,0.00017123,2]
[351068872,1738323091668,-4272.8,0.00017123,2]
[351068873,1738323091677,-964.18,0.00017123,2]
[351068874,1738323091685,-500.0,0.00017123,2]
[351068875,1738323091694,-5005.42,0.00017123,2]
[351068876,1738323091703,-7290.56,0.00017123,2]
[351068877,1738323091713,-500.0,0.00017123,2]
[351068878,1738323091722,-1106.15,0.00017123,2]
[351068879,1738323091731,-615.59,0.00017123,2]
[351068880,1738323091740,-3367.77,0.00017123,2]
[351068881,1738323091749,-2830.59,0.00017123,2]
[351068882,1738323091758,-500.0,0.00017123,2]
[351068883,1738323091767,-820.23,0.00017123,2]
[351068884,1738323091776,-630.22,0.00017123,2]
[351068885,1738323091785,-500.0,0.00017123,2]
[351068886,1738323091794,-500.0,0.00017123,2]
[351068887,1738323091804,-500.0,0.00017123,2]
[351068888,1738323091813,-500.0,0.00017123,2]
[351068889,1738323091823,-665.12,0.00017123,2]
[351068890,1738323091832,-1258.51,0.00017123,2]
[351068891,1738323091841,-1775.32,0.00017123,2]
[351068892,1738323091851,-3871.59,0.00017123,2]
[351068893,1738323091861,-1387.06,0.00017123,2]
[351068894,1738323091870,-1539.71,0.00017123,2]
[351068895,1738323091879,-1762.27,0.00017123,2]
[351068896,1738323091889,-500.0,0.00017123,2]
[351068897,1738323091898,-1371.01,0.00017123,2]
[351068898,1738323091907,-962.21,0.00017123,2]
[351068899,1738323091919,-1636.23,0.00017123,2]
[351068900,1738323091928,-710.8,0.00017123,2]
[351068901,1738323091938,-500.0,0.00017123,2]
[351068902,1738323091947,-500.0,0.00017123,2]
[351068903,1738323091957,-1387.02,0.00017123,2]
[351068904,1738323091966,-500.0,0.00017123,2]
[351068905,1738323091976,-1380.28,0.00017123,2]
[351068906,1738323091985,-1456.65,0.00017123,2]
[351068907,1738323091996,-1906.65,0.00017123,2]
[351068908,1738323092007,-1067.94,0.00017123,2]
[351068909,1738323092017,-500.0,0.00017123,2]
[351068910,1738323092026,-3531.48,0.00017123,2]
[351068911,1738323092035,-500.86,0.00017123,2]
[351068912,1738323092046,-500.0,0.00017123,2]
[351068913,1738323092055,-1186.73,0.00017123,2]
[351068914,1738323092065,-500.0,0.00017123,2]
[351068915,1738323092074,-1411.37,0.00017123,2]
[351068916,1738323092083,-509.93,0.00017123,2]
[351068917,1738323092093,-2122.9,0.00017123,2]
[351068918,1738323092102,-902.27,0.00017123,2]
[351068919,1738323092112,-2839.89,0.00017123,2]
[351068920,1738323092121,-1169.81,0.00017123,2]
[351068921,1738323092132,-500.0,0.00017123,2]
[351068922,1738323092142,-2045.77,0.00017123,2]
[351068923,1738323092151,-845.02,0.00017123,2]
[351068924,1738323092160,-2892.95,0.00017123,2]
[351068925,1738323092173,-594.99099551,0.00017123,2]
[351068926,1738323092182,-1131.85,0.00017123,2]
[351068927,1738323092192,-3027.76,0.00017123,2]
[351068928,1738323092201,-4851.36,0.00017123,2]
[351068929,1738323092211,-1718.8,0.00017123,2]
[351068930,1738323092220,-2594.05,0.00017123,2]
[351068931,1738323092231,-1324.51,0.00017123,2]
[351068932,1738323092240,-1337.35,0.00017123,2]
[351068933,1738323092249,-1106.09,0.00017123,2]
[351068934,1738323092258,-500.0,0.00017123,2]
[351068935,1738323092268,-949.11,0.00017123,2]
[351068936,1738323092277,-500.0,0.00017123,2]
[351068937,1738323092286,-1261.33,0.00017123,2]
[351068938,1738323092295,-517.59370999,0.00017123,2]
[351068939,1738323092304,-710.62,0.00017123,2]
[351068940,1738323092315,-500.0,0.00017123,2]
[351068941,1738323092324,-705.09,0.00017123,2]
[351068942,1738323092334,-650.7,0.00017123,2]
[351068943,1738323092342,-500.0,0.00017123,2]
[351068944,1738323092351,-742.48,0.00017123,2]
[351068945,1738323092360,-500.0,0.00017123,2]
[351068946,1738323092371,-2364.34,0.00017123,2]
[351068947,1738323092380,-1730.79,0.00017123,2]
[351068948,1738323092389,-2632.89,0.00017123,2]
[351068949,1738323092399,-500.0,0.00017123,2]
[351068950,1738323092408,-500.0,0.00017123,2]
[351068951,1738323092420,-994.44,0.00017123,2]
[351068952,1738323092431,-2217.98,0.00017123,2]
[351068953,1738323092440,-1185.07,0.00017123,2]
[351068954,1738323092452,-2299.57,0.00017123,2]
[351068955,1738323092463,-754.96,0.00017123,2]
[351068956,1738323092474,-959.09,0.00017123,2]
[351068957,1738323092485,-637.68,0.00017123,2]
[351068958,1738323092494,-1576.65,0.00017123,2]
[351068959,1738323092505,-1408.79,0.00017123,2]
[351068960,1738323092515,-3752.37,0.00017123,2]
[351068961,1738323092525,-1401.32,0.00017123,2]
[351068962,1738323092536,-1087.69,0.00017123,2]
[351068963,1738323092546,-989.74,0.00017123,2]
[351068964,1738323092556,-500.0,0.00017123,2]
[351068965,1738323092567,-500.0,0.00017123,2]
[351068966,1738323092577,-500.0,0.00017123,2]
[351068967,1738323092586,-2515.21,0.00017123,2]
[351068968,1738323092596,-647.13,0.00017123,2]
[351068969,1738323092607,-2597.85,0.00017123,2]
[351068970,1738323092619,-2757.06,0.00017123,2]
[351068971,1738323092630,-1810.3,0.00017123,2]
[351068972,1738323092640,-8215.37,0.00017123,2]
[351068973,1738323092652,-909.1,0.00017123,2]
[351068974,1738323092663,-2103.99,0.00017123,2]
[351068975,1738323092675,-1622.36,0.00017123,2]
[351068976,1738323092685,-2894.94,0.00017123,2]
[351068977,1738323092696,-757.69,0.00017123,2]
[351068978,1738323092706,-4454.49,0.00017123,2]
[351068979,1738323092716,-688.07,0.00017123,2]
[351068980,1738323092726,-3861.01,0.00017123,2]
[351068981,1738323092736,-500.0,0.00017123,2]
[351068982,1738323092747,-2025.17,0.00017123,2]
[351068983,1738323092758,-500.0,0.00017123,2]
[351068984,1738323092768,-3606.29,0.00017123,2]
[351068985,1738323092779,-3907.41,0.00017123,2]
[351068986,1738323092790,-500.0,0.00017123,2]
[351068987,1738323092801,-500.0,0.00017123,2]
[351068988,1738323092811,-2440.37,0.00017123,2]
[351068989,1738323092822,-1745.49,0.00017123,2]
[351068990,1738323092832,-5548.15,0.00017123,2]
[351068991,1738323092843,-3752.67,0.00017123,2]
[351068992,1738323092854,-1435.49,0.00017123,2]
[351068993,1738323092864,-1082.67,0.00017123,2]
[351068994,1738323092875,-3168.71,0.00017123,2]
[351068995,1738323092886,-2282.44,0.00017123,2]
[351068996,1738323092896,-760.62,0.00017123,2]
[351068997,1738323092907,-1080.31,0.00017123,2]
[351068998,1738323092921,-941.91,0.00017123,2]
[351068999,1738323092931,-500.0,0.00017123,2]
[351069000,1738323092941,-2947.86,0.00017123,2]
[351069001,1738323092952,-1273.21,0.00017123,2]